[Event "93rd German Championship 2022"]
[Site "Magdeburg"]
[Date "2022.08.20"]
[Round "9.17"]
[White "Stricker, Florian"]
[Black "Malek, Daniel"]
[Result "0-1"]
[ECO "B12"]
[WhiteElo "2182"]
[BlackElo "2355"]
[Annotator "TA"]
[PlyCount "192"]
[EventDate "2022.08.14"]
[EventType "swiss"]
[EventCountry "GER"]
[SourceTitle "playchess.com"]
[Source "ChessBase"]
[SourceQuality "1"]
[TimeControl "40/5400+30:1800+30"]

{[%evp 13,192,10,26,27,29,10,19,18,12,12,21,26,47,48,46,54,56,50,50,0,0,0,50,0,0,-50,0,0,0,0,17,18,17,3,24,0,0,0,0,0,0,-46,-37,-57,0,0,0,0,4,0,25,22,38,0,0,0,83,0,0,0,0,-18,-15,-17,-14,-231,0,0,0,0,0,-9,0,-3,-3,-8,-8,-8,-8,-56,0,0,0,-6,0,0,0,-2,0,-3,-3,-3,-3,-8,-8,-8,-8,-8,-8,-8,-8,-8,-8,-8,-8,-8,-8,-13,-8,-13,-13,-25,-13,-46,-13,-27,-13,-13,-13,-13,-13,-13,-13,-20,-20,-51,-44,-196,-38,-38,-38,-38,-13,-94,-96,-320,-288,-479,-175,-201,-198,-218,-220,-576,-544,-789,-592,-584,-580,-29950,-29956,-29954,-29955,-29968,-29969,-29970,-29970,-29970,-29971,-29970,-29971,-29972,-29973,-29973,-29974,-29974,-29975,-29975,-29976,-29976,-29977,-29979,-29978,-29980,-29979,-29979,-29980,-29979,-29979,-29982,-29979]} 1. e4 {[%emt 0:00:02]} c6 {[%emt 0:00:07]} 2. d4 {[%emt 0:00:06]} d5 {[%emt 0:00:05]} 3. e5 {[%emt 0:00:06]} Bf5 {[%emt 0:00:06]} 4. h4 {[%emt 0:00:14]} h6 {[%emt 0:00:11]} 5. g4 {[%emt 0:00:13]} Be4 {[%emt 0:00:07]} 6. f3 {[%emt 0:00:09]} Bh7 {[%emt 0:00:06]} 7. e6 {[%emt 0:00:08]} Qd6 {[%emt 0:00:06]} 8. exf7+ $1 {[%emt 0:00:07] B12: Caro-Kann: Advance Variation.} Kxf7 {[%emt 0:00:06]} 9. f4 {[%emt 0:00:17]} Nf6 {[%emt 0:00:33]} 10. Nf3 {The position is equal. 10.Bh3 is vanishing.} Nxg4 {[%emt 0:00:14]} 11. Bh3 {[%emt 0:01:29]} (11. Ne5+ Nxe5 12. fxe5 Qg6 $15) 11... h5 {[%emt 0:00:08]} 12. Ne5+ {[%emt 0:01:15]} Ke8 {[%emt 0:00:27]} 13. Bxg4 {[%emt 0:00:24]} (13. Nxg4 hxg4 14. Qxg4 Nd7 $11) 13... hxg4 {[%emt 0:00:09]} 14. Qxg4 {[%emt 0:00:10] [#]} Be4 $146 {[%emt 0:00:26]} ({Predecessor:} 14... Nd7 15. Qh5+ g6 16. Qe2 c5 17. Be3 Nxe5 18. fxe5 Qb6 19. c3 c4 20. Na3 g5 21. Bxg5 {1-0 (38) Giri,A (2764)-Ter Sahakyan,S (2640) Chess.com INT 2020}) 15. Qc8+ {[%emt 0:17:11]} Qd8 {[%emt 0:06:03] [#]} 16. Qe6 {[%emt 0:00:51][%csl Ge5][%cal Re6f7]} Qd6 {[%emt 0:03:12]} 17. Qc8+ {[%emt 0:30:48]} Qd8 {[%emt 0:00:27]} 18. Qe6 {[%emt 0:00:03]} Qd6 $11 {[%emt 0:29:08]} 19. Qf7+ {[%emt 0:07:14]} Kd8 {[%emt 0:00:33]} 20. Rh2 {[%emt 0:00:13]} Nd7 {[%emt 0:03:43]} 21. Nc3 {[%emt 0:01:59]} Nxe5 {[%emt 0:00:47]} 22. fxe5 {[%emt 0:00:48]} Qg6 {[%emt 0:00:07]} 23. Qf2 {[%emt 0:00:48][%cal Oh4h5]} e6 {[%emt 0:06:02]} 24. Bg5+ {[%emt 0:06:09]} (24. h5 $5 {[%cal Rh5g6]} Qf5 25. Nxe4 Qxe4+ 26. Qe3 $14) 24... Be7 {[%emt 0:00:15]} 25. Bxe7+ {[%emt 0:00:16]} Kxe7 {[%emt 0:00:07]} 26. O-O-O $1 {[%emt 0:00:18]} Raf8 {[%emt 0:07:51] Really sharp! Active counter play!} 27. Qe1 {[%emt 0:15:46]} (27. Qe3 $11 {was preferrable.}) 27... Bf3 $1 $15 {[%emt 0:03:44]} 28. Ne2 {[%emt 0:03:10]} Kd7 {[%emt 0:00:33]} ({Better is} 28... Ke8 $15) 29. Qb4 $36 {[%emt 0:04:33][%mdl 2048] White is pushing.} Kc8 {[%emt 0:04:50]} 30. Rg1 {[%emt 0:02:34]} Qh6+ 31. Kb1 {[%emt 0:00:05]} Bxe2 {[%emt 0:02:10]} (31... g5 {looks sharper.} 32. Rxg5 Bxe2 33. Rxe2 Rf1+) 32. Rxe2 {[%emt 0:01:57]} Qxh4 {[%emt 0:04:36]} (32... Rf7 {is interesting.} 33. Qc5 a6 34. Qa7 Qxh4 35. a3 Qd8) 33. a4 {[%emt 0:01:24]} Rf7 {[%emt 0:00:39]} 34. Reg2 {[%emt 0:02:52]} Rh7 {[%emt 0:00:20]} (34... Qe7 $1 $11 35. Qxe7 Rxe7) 35. Rg6 {[%emt 0:00:48]} (35. Qc5 $1 $16) 35... Qe7 $1 {[%emt 0:03:46]} 36. Qd2 {[%emt 0:02:10]} Rh4 {[%emt 0:03:35]} 37. c3 c5 38. dxc5 {[%emt 0:01:31]} Qxc5 {[%emt 0:02:29] Hoping for ...Rf2.} 39. Qg5 $2 {[%emt 0:01:11]} (39. Qd1 $11) 39... Qe7 $2 {[%emt 0:02:46]} ({Not} 39... Rxa4 40. Rxg7 Raf4 41. Rg8+ Rf8 42. Qxf4 $11 (42. Qh6 Qe7 $11)) ({Black should play} 39... Qc4 $19 {( -> ...Qd3+)} 40. Qg2 Rhf4) 40. Rxe6 {[%emt 0:00:22]} Qxe6 {[%emt 0:06:51]} 41. Qxh4 {[%emt 0:30:35]} Qxe5 {[%emt 0:30:19][%mdl 4096] Endgame KQR-KQR} 42. Re1 {[%emt 0:00:00]} Qf6 {[%emt 0:00:00]} 43. Qb4 {[%emt 0:00:00]} b6 {[%emt 0:00:00] Inhibits Qc5+.} 44. Qb5 {[%emt 0:00:00]} Qf5+ {[%emt 0:00:00]} 45. Ka2 {[%emt 0:00:00] Threatening mate with Qc6+.} Qd7 {[%emt 0:00:00] Prevents Qc6+.} 46. Qb4 {[%emt 0:00:00]} (46. Re5 $11 {is superior.}) 46... Qc7 {[%emt 0:00:00]} (46... g5 $1 $15 47. Kb3 g4) 47. Kb3 {[%emt 0:00:00]} Kb7 {[%emt 0:00:00]} 48. Re8 {[%emt 0:00:00]} Qc5 {[%emt 0:00:00]} 49. Qg4 {[%emt 0:00:00]} Rc7 {[%emt 0:01:17]} 50. Qf5 {[%emt 0:00:00]} b5 {[%emt 0:01:54]} 51. Rd8 {[%emt 0:00:00]} Qc4+ {[%emt 0:00:41]} 52. Kc2 {[%emt 0:00:00]} Qxa4+ {[%emt 0:00:22]} 53. Kc1 {[%emt 0:00:23]} Qe4 {[%emt 0:02:49]} 54. Rxd5 {[%emt 0:02:29]} Qxf5 {[%emt 0:00:50]} 55. Rxf5 {[%emt 0:00:05] KR-KR} Kc6 {[%emt 0:00:07]} 56. Rg5 {[%emt 0:00:21]} Rb7 {[%emt 0:00:07]} 57. Kc2 {[%emt 0:00:39]} Kd6 {[%emt 0:01:50]} 58. Kd3 {[%emt 0:00:33]} Ke6 {[%emt 0:00:09]} 59. Ke4 {[%emt 0:00:12]} Kf7 {[%emt 0:01:34]} 60. Rc5 {[%emt 0:00:34]} Kf6 {[%emt 0:01:19]} 61. Kf4 {[%emt 0:00:18]} Rb6 {[%emt 0:00:09]} 62. Rc8 {[%emt 0:00:33]} Re6 {[%emt 0:01:04]} 63. Rc7 {[%emt 0:01:05]} g5+ {[%emt 0:00:34]} 64. Kg4 {[%emt 0:00:26]} a6 {[%emt 0:00:12] Strongly threatening ...Re4+.} 65. Rc5 $1 {[%emt 0:00:11]} Re4+ {[%emt 0:00:08]} 66. Kf3 {[%emt 0:00:19]} Rc4 {[%emt 0:01:14]} 67. Rd5 $1 {[%emt 0:00:33]} Rf4+ {[%emt 0:00:07]} 68. Kg3 {[%emt 0:00:43]} Kg6 {[%emt 0:00:05]} 69. Rd6+ {[%emt 0:00:17]} Rf6 {[%emt 0:00:07]} 70. Rd8 $2 {[%emt 0:00:15] [#]} (70. Rd5 $15) 70... Re6 $2 {[%emt 0:00:31]} (70... Kf5 $1 $19 {[%cal Rf5e4] And now ...Ke4 would win.} 71. Rd2 Re6) 71. Kg4 $1 $15 {[%emt 0:00:50]} Re4+ {[%emt 0:00:29]} 72. Kf3 $1 {[%emt 0:00:15]} Ra4 {[%emt 0:02:28]} 73. Rg8+ {[%emt 0:01:19]} (73. b4 $11 {remains equal.}) 73... Kf5 $17 {[%emt 0:00:13] ...g4+ is the strong threat. Black continues to play with concentration.} 74. Re8 $2 {[%emt 0:01:09]} (74. b4 $17) 74... g4+ $19 {[%emt 0:00:39]} 75. Kg3 $2 {[%emt 0:00:04]} (75. Ke3 {was the only defense.}) 75... Re4 $2 {[%emt 0:00:56]} (75... Ra2 76. Re2 Ra1 77. Rf2+ Kg5) 76. Rf8+ {[%emt 0:00:10]} Ke5 {[%emt 0:00:10] White must now prevent ...Kd5.} 77. Ra8 {[%emt 0:01:09] [#]} Ra4 $1 {[%emt 0:00:10]} 78. Rc8 $2 {[%emt 0:00:23]} (78. Rd8 {was the crucial defense.}) 78... Ke4 {[%emt 0:00:45] aiming for ...Kd3.} 79. Kxg4 {[%emt 0:02:15]} Kd3+ {[%emt 0:00:07]} 80. Kf5 {[%emt 0:00:07]} Ra2 {[%emt 0:00:47]} 81. b4 {[%emt 0:01:44]} Rc2 {[%emt 0:00:16] Black mates.} 82. Ra8 {[%emt 0:00:37]} Kxc3 {[%emt 0:00:07]} 83. Rxa6 {[%emt 0:00:07]} Kxb4 {[%emt 0:00:06]} 84. Ke4 {[%emt 0:00:10]} Kc3 {[%emt 0:01:29]} 85. Rc6+ {[%emt 0:01:17]} Kb3 {[%emt 0:00:18]} 86. Rb6 {[%emt 0:00:48]} b4 {[%emt 0:00:06][%cal Bb5b4,Bb4b3,Bb3b2][%mdl 32]} 87. Kd3 {[%emt 0:00:05]} Rc8 {[%emt 0:00:06]} 88. Kd2 {[%emt 0:00:32]} Ka3 {[%emt 0:00:07]} 89. Ra6+ {[%emt 0:00:31]} Kb2 {[%emt 0:00:05]} 90. Rb6 {[%emt 0:01:00]} Rd8+ {[%emt 0:00:07]} 91. Ke3 {[%emt 0:00:10]} b3 {[%emt 0:00:04]} 92. Rc6 {[%emt 0:00:12]} Ka2 {[%emt 0:00:10]} 93. Rh6 {[%emt 0:00:28]} b2 {[%emt 0:00:07]} 94. Ra6+ {[%emt 0:00:11]} Kb1 {[%emt 0:00:06]} 95. Ke2 {[%emt 0:00:23]} Rd5 {[%emt 0:00:09]} 96. Ra8 {[%emt 0:00:30]} Kc2 {[%emt 0:00:07] Weighted Error Value: White=0.16 (very precise) /Black=0.13 (very precise)} 0-1

[Event "93rd German Championship 2022"]
[Site "Magdeburg"]
[Date "2022.08.20"]
[Round "9.18"]
[White "Yi, Danny"]
[Black "Westphal, Wolfgang"]
[Result "1-0"]
[ECO "B32"]
[WhiteElo "2273"]
[BlackElo "2175"]
[Annotator "TA"]
[PlyCount "59"]
[EventDate "2022.08.14"]
[EventType "swiss"]
[EventCountry "GER"]
[SourceTitle "playchess.com"]
[Source "ChessBase"]
[SourceQuality "1"]
[TimeControl "40/5400+30:1800+30"]

{[%evp 17,59,58,54,3,4,0,39,36,33,23,33,35,34,45,154,139,244,246,252,239,249,235,244,238,239,238,285,237,234,241,390,404,391,378,450,470,1288,1281,1273,1269,1231,1198,2350,1824]} 1. e4 {[%emt 0:00:02]} c5 {[%emt 0:00:05]} 2. Nf3 {[%emt 0:00:06]} Nc6 {[%emt 0:00:06]} 3. d4 {[%emt 0:00:18]} cxd4 {[%emt 0:00:05]} 4. Nxd4 {[%emt 0:00:05]} e5 {[%emt 0:00:05]} 5. Nb5 {[%emt 0:00:47]} a6 {[%emt 0:00:39]} 6. Nd6+ {[%emt 0:01:49]} Bxd6 {[%emt 0:00:07]} 7. Qxd6 {[%emt 0:00:07]} Qf6 {[%emt 0:00:03]} 8. Qd2 {[%emt 0:01:36]} Qg6 {[%emt 0:00:14]} 9. Nc3 $1 {[%emt 0:00:44] The main line 9.Nc3 scores better than 9.f3.} Nge7 {[%emt 0:00:13][%cal Od7d5]} 10. b3 {[%emt 0:03:38] B32: Sicilian: Löwenthal and Kalashnikov Variations.} (10. f4 $14) 10... d5 $1 $11 {[%emt 0:02:20]} 11. f3 {[%emt 0:25:37] [#]} d4 $146 {[%emt 0:04:02]} ({Predecessor:} 11... dxe4 12. Nxe4 O-O 13. Ba3 Bf5 14. Bd3 Rfd8 15. O-O-O Nd5 16. g4 Be6 17. h4 Qh6 18. Qxh6 gxh6 {1-0 (36) Elters,A (2236)-Bustelo,T (2079) Montevideo 2013}) 12. Na4 {[%emt 0:02:47] White is slightly better.} b5 {[%emt 0:05:08]} 13. Nb6 {[%emt 0:05:48]} Rb8 {[%emt 0:00:05]} 14. Nxc8 {[%emt 0:00:05]} ({Of course not} 14. Nd5 Nxd5 15. exd5 Ne7 $15) 14... Rxc8 {[%emt 0:00:05]} 15. a4 {[%emt 0:00:23][%cal Ba2a4,Ba4b5][%mdl 32]} Qd6 {[%emt 0:24:14] White stays focused until the end.} (15... Rb8 $14) 16. axb5 $16 {[%emt 0:05:43]} Nb4 {[%emt 0:00:07]} (16... axb5 $16 17. Bxb5 Qc5) 17. Ba3 $18 {[%emt 0:00:47]} a5 {[%emt 0:00:21]} 18. Bxb4 {[%emt 0:01:04]} axb4 {[%emt 0:00:08]} 19. Ra6 {[%emt 0:06:00]} Qc5 {[%emt 0:00:11]} 20. Bc4 {[%emt 0:01:46]} O-O {[%emt 0:00:20]} 21. Ke2 {[%emt 0:01:14][%cal Be1e2,Be2d2,Bd2c1,Bc1b2][%mdl 32]} Ra8 {[%emt 0:06:17]} 22. Rha1 {[%emt 0:00:21]} Rxa6 {[%emt 0:00:10]} 23. Rxa6 {[%emt 0:00:37]} ({Much less strong is} 23. bxa6 Nc8 24. Kf1 Nb6) 23... d3+ {[%emt 0:01:09]} (23... h6 $142 24. g3 Re8) 24. Qxd3 {[%emt 0:05:27]} Qg1 {[%emt 0:00:19]} 25. Kd2 {[%emt 0:08:17]} Qxg2+ {[%emt 0:02:21]} 26. Kc1 {[%emt 0:00:30] White is clearly winning.} Ng6 {[%emt 0:00:14]} (26... Qg1+ $142 27. Kb2 Nc8 28. Bxf7+ Rxf7) 27. b6 {[%emt 0:03:36]} Qg5+ {[%emt 0:04:23]} 28. Kb2 {[%emt 0:00:15]} Rd8 {[%emt 0:00:20] [#]} 29. b7 $1 {[%emt 0:00:36] Threatening mate with Ra8.} Nf8 {[%emt 0:03:54] [#]} (29... Rxd3 30. Bxd3) 30. Ra8 $1 {[%emt 0:00:27] Weighted Error Value: White=0.06 (flawless) /Black=0.39} 1-0

[Event "93rd German Championship 2022"]
[Site "Magdeburg"]
[Date "2022.08.20"]
[Round "9.19"]
[White "Pahl, Erik"]
[Black "Becker, Stefan"]
[Result "1-0"]
[ECO "B41"]
[WhiteElo "2203"]
[BlackElo "2101"]
[Annotator "TA"]
[PlyCount "81"]
[EventDate "2022.08.14"]
[EventType "swiss"]
[EventCountry "GER"]
[SourceTitle "playchess.com"]
[Source "ChessBase"]
[SourceQuality "1"]
[TimeControl "40/5400+30:1800+30"]

{[%evp 30,81,47,38,71,71,66,63,56,32,60,52,110,123,127,122,117,127,109,107,145,168,167,163,151,70,36,67,68,0,0,15,214,211,256,261,333,212,243,192,211,207,300,274,296,244,296,262,351,323,460,329,353,230]} 1. e4 {[%emt 0:06:29]} c5 {[%emt 0:00:07]} 2. Nf3 {[%emt 0:00:05]} e6 {[%emt 0:00:05]} 3. d4 {[%emt 0:00:07]} cxd4 {[%emt 0:00:05]} 4. Nxd4 {[%emt 0:00:04]} a6 {[%emt 0:00:06]} 5. c4 {[%emt 0:00:26]} Nf6 {[%emt 0:00:11]} 6. Nc3 {[%emt 0:00:05]} Qc7 {[%emt 0:00:20]} 7. a3 {[%emt 0:00:12]} d6 {[%emt 0:00:21]} 8. Be3 {[%emt 0:00:15]} b6 {[%emt 0:01:29]} 9. Be2 {[%emt 0:00:16]} Bb7 {[%emt 0:00:18]} 10. f3 {[%emt 0:00:06]} Be7 {[%emt 0:00:06]} 11. O-O {[%emt 0:00:10]} O-O {[%emt 0:00:17]} 12. Rc1 {[%emt 0:00:19]} Nbd7 {[%emt 0:00:54]} 13. Qd2 {[%emt 0:00:47]} Rac8 {[%emt 0:01:52]} 14. b4 {[%emt 0:00:42]} Rfe8 {[%emt 0:02:13]} 15. Rfd1 {[%emt 0:00:45]} Qb8 {[%emt 0:04:24]} 16. Nb3 {[%emt 0:01:00] 16.Bf1 is the fancy move.} Bd8 {[%emt 0:05:36] A31: Symmetrical English: 2 Nf3 Nf6 3 d4.} 17. Bf4 {[%emt 0:01:35]} (17. Qxd6 Bc7 18. Qd3 Bxh2+ 19. Kf1 Red8 $11) 17... Ne5 {[%emt 0:01:24]} 18. Bxe5 {[%emt 0:00:54]} (18. Qxd6 Nxf3+ $1 19. gxf3 Bc7 20. Qxc7 Rxc7 $17) 18... dxe5 {[%emt 0:00:09] White is slightly better.} 19. c5 {[%emt 0:00:19]} Qa7 {[%emt 0:16:24][%cal Rb6c5]} 20. Kh1 {[%emt 0:05:48]} Nh5 {[%emt 0:11:14] [#]} (20... Bc6 $14) 21. cxb6 $146 {[%emt 0:03:52]} ({Predecessor:} 21. Qd6 Bc7 22. cxb6 Qxb6 23. Qxb6 Bxb6 24. Na4 Be3 25. Rxc8 Rxc8 26. Nac5 Nf4 27. Bf1 {1-0 (44) Sauer,T (1777)-Schwan,A (1671) Willingen 2022}) 21... Bxb6 {[%emt 0:07:38]} 22. Na4 $1 {[%emt 0:01:35]} Be3 {[%emt 0:10:14]} 23. Rxc8 {[%emt 0:00:46]} Bxc8 {[%emt 0:00:08] This bishop pair is nice.} 24. Qd6 $40 {[%emt 0:11:21][%mdl 128] White attacks with force.} (24. Qd8 {feels hotter.} Rf8 25. Nac5 a5 26. g3) 24... f6 {[%emt 0:03:30]} 25. g3 $1 {[%emt 0:08:00] White is more active.} Qf7 {[%emt 0:01:02]} 26. Rd3 $1 {[%emt 0:00:39]} (26. Bxa6 Qg6 27. Bxc8 Nxg3+ 28. hxg3 Qxg3 29. Bxe6+ Kh8 $11) 26... Bf2 {[%emt 0:02:09]} 27. Kg2 {[%emt 0:01:05]} (27. Rc3 $16 {Black must now prevent Rc7.} Nxg3+ 28. hxg3 Bxg3 29. Kg2) 27... Bxg3 $1 $14 {[%emt 0:00:39]} 28. hxg3 {[%emt 0:00:07] Strongly threatening Qb6.} Qg6 {[%emt 0:00:04]} 29. g4 {[%emt 0:19:34]} (29. f4 $1 $14 Nxf4+ 30. Kf2 Nxe2 31. Kxe2) 29... Nf4+ {[%emt 0:00:54]} 30. Kf2 {[%emt 0:01:24][%cal Bg2f2,Bf2e1,Be1d2,Bd2d3,Bd3c2,Bc2b2][%mdl 32] And now Nc1 would win.} Qh6 $2 {[%emt 0:03:52] [#] Black cannot hold the game after this.} (30... Qg5 $11 31. Rd1 f5) 31. Ke1 $1 $18 {[%emt 0:01:31]} Qh1+ {[%emt 0:17:00] [#]} (31... Qh2 32. Nc3 $1 $16 (32. Bf1 f5 $16)) (31... f5 32. Nc1) 32. Kd2 $1 {[%emt 0:01:18]} (32. Bf1 f5 $14) 32... Qh6 {[%emt 0:01:05]} 33. Nac5 {[%emt 0:06:18]} Kf7 {[%emt 0:06:00]} 34. Bd1 {[%emt 0:02:22]} Nxd3+ {[%emt 0:02:23]} 35. Kxd3 {[%emt 0:00:11] aiming for Nd2. Dancing on a razor blade.} Qh2 (35... g6 {was worth a try.} 36. Qc7+ (36. Nxa6 Bxa6+ 37. Qxa6 Rd8+ 38. Kc2 Qe3 $16) 36... Kg8) 36. Be2 {[%emt 0:00:51]} Qg1 {[%emt 0:01:45]} 37. Kc2 {[%emt 0:00:49]} Qf2 {[%emt 0:00:27]} 38. Qd2 {[%emt 0:00:48]} Qg1 {[%emt 0:01:55]} 39. Kb2 {[%emt 0:00:46]} ({Don't play} 39. Nxa6 Qa7 $18) (39. Bxa6 Bxa6 40. Nxa6 Qf1 $18) 39... Re7 {[%emt 0:00:19]} (39... Rh8 {might work better.} 40. Nxa6 Bxa6) 40. Na5 {[%emt 0:03:36]} Kg6 41. Nc4 {[%emt 0:33:29] Weighted Error Value: White=0.16 (very precise) /Black=0.44} ({Resist} 41. Bxa6 Bxa6 42. Nxa6 Ra7 $18) ({Less strong is} 41. Nxa6 Rd7 42. Qc2 Qd4+ 43. Kb1 Bxa6 44. Bxa6 Qe3 $16) 1-0

[Event "93rd German Championship 2022"]
[Site "Magdeburg"]
[Date "2022.08.20"]
[Round "9.20"]
[White "Feidt, Jonas"]
[Black "Burian, Simon"]
[Result "0-1"]
[ECO "A34"]
[WhiteElo "1901"]
[BlackElo "2189"]
[Annotator "TA"]
[PlyCount "98"]
[EventDate "2022.08.14"]
[EventType "swiss"]
[EventCountry "GER"]
[SourceTitle "playchess.com"]
[Source "ChessBase"]
[SourceQuality "1"]
[TimeControl "40/5400+30:1800+30"]

{[%evp 14,98,17,0,0,-2,6,-28,-17,-31,-35,-39,-33,-50,-48,-49,-47,-59,-29,-59,-31,-51,-24,-65,-29,-48,-47,-56,-27,-58,-28,-28,-15,-102,-77,-130,-109,-113,-113,-202,-195,-203,-201,-204,-182,-253,-167,-250,-168,-163,-170,-456,-447,-440,-436,-779,-751,-963,-539,-525,-518,-549,-550,-540,-516,-683,-679,-717,-712,-716,-712,-814,-807,-829,-790,-804,-759,-738,-715,-866,-847,-778,-667,-1890,-1866,-1567,-1350]} 1. c4 {[%emt 0:00:03]} c5 {[%emt 0:00:09]} 2. g3 {[%emt 0:00:06]} Nf6 {[%emt 0:00:06]} 3. Bg2 {[%emt 0:00:07]} d5 {[%emt 0:00:05]} 4. cxd5 {[%emt 0:00:09]} Nxd5 {[%emt 0:00:06]} 5. Nc3 {[%emt 0:00:07]} Nc7 {[%emt 0:00:04]} 6. Nf3 {[%emt 0:00:12]} Nc6 {[%emt 0:00:06]} 7. O-O {[%emt 0:00:10]} e5 {[%emt 0:00:08]} 8. a3 {[%emt 0:00:07][%cal Ob2b4]} Rb8 {[%emt 0:00:14] A34: Symmetrical English: 2 Nc3, lines with ...d5.} 9. d3 {[%emt 0:04:17]} Be7 {[%emt 0:00:37]} 10. b3 {[%emt 0:03:40]} O-O {[%emt 0:03:09] Black has an edge.} 11. Bb2 {[%emt 0:00:55]} f6 {[%emt 0:01:39]} 12. Rc1 {[%emt 0:04:00]} Be6 {[%emt 0:05:00] [#]} 13. Ne4 $146 {[%emt 0:17:07]} ({Predecessor:} 13. Nd2 Qd7 14. Na4 Na6 15. Re1 Nd4 16. Nc3 Rfd8 17. Ba1 Bf8 18. Rb1 Rbc8 19. Qc1 {0-1 (49) Chernobay,A (2510)-Lomasov,S (2559) Sochi 2018}) 13... Na6 {[%emt 0:01:11]} 14. Ned2 {[%emt 0:08:37]} Qd7 {[%emt 0:04:14]} 15. Re1 {[%emt 0:03:49]} Rfc8 {[%emt 0:06:38]} 16. Qc2 {[%emt 0:15:16]} Bf8 {[%emt 0:05:32]} 17. Qb1 {[%emt 0:02:08]} Qf7 {[%emt 0:02:13]} 18. Bc3 {[%emt 0:05:36]} Nd4 {[%emt 0:07:35]} 19. Bxd4 {[%emt 0:01:26]} cxd4 {[%emt 0:00:54]} 20. b4 {[%emt 0:01:08]} Qd7 {[%emt 0:09:20]} 21. Ne4 {[%emt 0:05:21]} Qa4 {[%emt 0:05:50]} 22. Qb2 {[%emt 0:02:06]} Nc7 {[%emt 0:03:26][%cal Ba6c7,Bc7b5,Bb5a3,Ba3c2][%mdl 32]} 23. Nc5 {[%emt 0:09:20]} (23. e3 $11 Nb5 24. exd4) 23... Bxc5 $17 {[%emt 0:00:22] White is now going downhill.} 24. Rxc5 {[%emt 0:01:13] [#]} (24. bxc5 $142 Na6 25. Nd2) 24... b6 $1 {[%emt 0:01:31]} 25. Rcc1 {[%emt 0:01:29]} Nb5 $36 {[%emt 0:01:24][%mdl 2048] Black is really pushing.} 26. e3 {[%emt 0:01:12]} (26. Nd2 $17) 26... dxe3 $19 {[%emt 0:02:45]} ({Not} 26... Qxa3 27. Qxa3 Nxa3 28. exd4 $17) ({Stronger than} 26... Nxa3 27. exd4 Rc2 28. Rxc2 Nxc2 29. Rb1 $11) 27. fxe3 {[%emt 0:00:40][%cal Of3e5]} Qxa3 {[%emt 0:01:00]} ({Don't do} 27... Nxa3 28. Ra1 $18) 28. Qxa3 {[%emt 0:00:29]} Nxa3 {[%emt 0:00:04]} 29. d4 {[%emt 0:01:15]} (29. Rxc8+ {might work better.} Rxc8 30. Kf2) 29... e4 {[%emt 0:00:48]} 30. Nd2 {[%emt 0:00:09]} (30. Rxc8+ {was necessary.} Rxc8 31. Nd2) 30... f5 {[%emt 0:00:06] Threatens to win with ...Nc2.} 31. Rxc8+ {[%emt 0:01:45]} Rxc8 {[%emt 0:00:05]} 32. Ra1 $2 {[%emt 0:01:03]} (32. Bh3) 32... Nc2 {[%emt 0:00:53][%csl LRa1,LRb4,LRe3] Black is clearly winning.} 33. Rxa7 {[%emt 0:00:06]} Nxe3 {[%emt 0:00:08]} 34. Nf1 {[%emt 0:00:32]} (34. Nxe4 $142 Rc1+ 35. Kf2 Ng4+ 36. Kf3) 34... Rc1 {[%emt 0:00:35] Hoping for ...Nxf1.} 35. Kf2 {[%emt 0:00:28]} Nxf1 {[%emt 0:00:26]} 36. Bxf1 {[%emt 0:00:10]} e3+ {[%emt 0:00:04]} 37. Kxe3 {[%emt 0:01:30]} Rxf1 {[%emt 0:00:12][%mdl 4096] Endgame KRB-KR} 38. Rb7 {[%emt 0:00:43]} Re1+ {[%emt 0:00:28]} 39. Kf2 {[%emt 0:01:28]} Re4 {[%emt 0:00:44]} 40. Rxb6 {[%emt 0:00:12]} Kf7 {[%emt 0:00:34]} 41. Rb7+ {[%emt 0:31:48]} Kf6 {[%emt 0:30:30]} 42. b5 {[%emt 0:01:16]} Rxd4 {[%emt 0:00:12]} 43. b6 {[%emt 0:00:35]} Rb4 {[%emt 0:00:19]} 44. Rb8 {[%emt 0:00:13]} Bd5 {[%emt 0:00:18]} 45. Ke3 {[%emt 0:00:50]} Be4 {[%emt 0:00:31]} 46. h4 {[%emt 0:00:48]} Rb3+ {[%emt 0:00:14]} 47. Kd4 {[%emt 0:00:38]} Rxg3 {[%emt 0:00:21]} 48. b7 {[%emt 0:00:20] [#]} Bxb7 $1 {[%emt 0:00:05]} 49. Rxb7 {[%emt 0:00:45]} (49. Rf8+ Kg6) 49... Rg4+ {[%emt 0:00:06] Weighted Error Value: White=0.55/Black=0.24 (precise)} 0-1